bitfinex-derivatives/quotes_SOLF0:USTF0_20251119
["timestamp","ask_amount","ask_price","bid_price","bid_amount"]
[1763515168843,6.45531728,140.7,140.68,0.05483932]
[1763515169447,0.05461728,140.7,140.68,0.05483932]
[1763515171857,6.45531728,140.7,140.68,0.05483932]
[1763515173956,6.4017,140.68,140.62,3.23]
[1763515174658,37.4,140.71,140.62,3.23]
[1763515174861,37.4,140.71,140.67,3.23]
[1763515175057,37.4,140.71,140.62,99.6186]
[1763515175058,0.0524329,140.7,140.69,3.23]
[1763515175259,0.04749976,140.71,140.69,3.23]
[1763515175559,0.0511474,140.71,140.69,0.05440336]
[1763515175948,6.4512474,140.71,140.69,0.05440336]
[1763515177062,0.0511474,140.71,140.69,3.28440336]
[1763515181166,0.0511474,140.71,140.7,3.23]
[1763515182060,0.0511474,140.71,140.7,9.6306]
[1763515183365,9.60775133,140.8,140.73,3.23]
[1763515183571,9.60775133,140.83,140.73,3.23]
[1763515183869,2.96601419,140.83,140.73,3.23]
[1763515184058,8.30534161,140.83,140.76,3.23]
[1763515184460,0.05272803,140.81,140.78,3.27940284]
[1763515185063,0.05272803,140.81,140.78,0.04940284]
[1763515185262,0.05272803,140.81,140.78,3.27940284]
[1763515186773,0.05272803,140.81,140.79,3.23]
[1763515187460,0.05272803,140.81,140.78,0.04940284]
[1763515187964,0.05272803,140.81,140.78,3.27940284]
[1763515189072,6.3962,140.8,140.78,0.04940284]
[1763515191071,6.3961,140.8,140.78,0.04940284]
[1763515192770,8.29222004,140.8,140.78,0.04940284]
[1763515193380,6.3973,140.78,140.74,3.23]
[1763515193671,1.89612004,140.78,140.71,9.6298]
[1763515193877,1.89612004,140.76,140.71,3.23]
[1763515194274,0.05051909,140.75,140.72,0.05030813]
[1763515194478,0.05051909,140.75,140.73,3.23]
[1763515195979,0.05051909,140.75,140.74,3.23]
[1763515196974,0.05051909,140.75,140.72,3.28030813]
[1763515197776,6.44891909,140.75,140.72,3.28030813]
[1763515198082,0.05051909,140.75,140.72,0.05030813]
[1763515198276,5.35330236,140.74,140.72,0.05030813]
[1763515198470,5.35541187,140.73,140.72,0.05030813]
[1763515198783,6.3988,140.74,140.72,0.05030813]
[1763515199078,11.75384631,140.74,140.72,0.05030813]
[1763515199378,6.3988,140.74,140.72,0.05030813]
[1763515200472,5.40547959,140.75,140.72,3.28030813]
[1763515200677,5.40505011,140.75,140.72,0.05030813]
[1763515200878,5.35453102,140.74,140.72,0.05030813]
[1763515201382,5.40505011,140.75,140.72,0.05030813]
[1763515201576,5.35453102,140.74,140.72,0.00030813]
[1763515201782,99.5546,140.72,140.64,3.23]
[1763515201984,42.73453102,140.71,140.64,3.23]
[1763515202179,37.38,140.71,140.66,3.23]
[1763515202775,0.04846042,140.7,140.68,3.23]
[1763515204983,11.72214328,140.74,140.68,3.23]
[1763515205190,11.54066068,140.8,140.69,3.21]
[1763515205482,37.38,140.78,140.69,3.21]
[1763515205982,37.38,140.78,140.68,99.5756]
[1763515205983,37.38,140.78,140.73,3.21]
[1763515206282,0.05348688,140.77,140.74,0.04841709]
[1763515206479,0.05348688,140.77,140.74,3.25841709]
[1763515206678,6.45108688,140.77,140.74,3.25841709]
[1763515208885,6.3979,140.76,140.74,3.25841709]
[1763515209095,6.3979,140.76,140.74,0.04841709]
[1763515209278,6.3997,140.72,140.68,3.21]
[1763515209581,99.5298,140.75,140.68,3.21]
[1763515209775,142.24678608,140.74,140.66,3.21]
[1763515209974,6.4002,140.71,140.66,3.21]
[1763515210173,0.04998264,140.7,140.67,0.0479725]
[1763515210578,6.4011,140.69,140.67,0.0479725]
[1763515211797,0.04998264,140.7,140.67,3.2579725]
[1763515214292,0.04998264,140.7,140.67,0.0479725]
[1763515214785,6.4011,140.69,140.67,0.0479725]
[1763515214995,6.4011,140.69,140.67,3.2579725]
[1763515215588,0.04998264,140.7,140.67,3.2579725]
[1763515217389,0.04998264,140.7,140.67,9.6597725]
[1763515217594,0.04998264,140.7,140.67,3.2579725]
[1763515217781,106.10494432,140.79,140.68,3.21]
[1763515218092,42.72791453,140.78,140.69,3.21]
[1763515218292,37.4,140.78,140.69,3.21]
[1763515218587,37.4,140.78,140.71,6.3999]
[1763515218792,0.04976198,140.76,140.73,3.26365947]
[1763515219783,6.44766198,140.76,140.73,3.26365947]
[1763515221893,0.04976198,140.76,140.73,3.26365947]
[1763515223902,0.04976198,140.76,140.73,9.66275947]
[1763515224095,0.04976198,140.76,140.74,3.05]
[1763515224496,0.04976198,140.76,140.75,3.05]
[1763515224798,37.38,140.81,140.75,3.05]
[1763515224996,37.38,140.81,140.77,3.05]
[1763515225301,37.38,140.81,140.74,3.05]
[1763515225604,0.05008547,140.79,140.76,3.10291553]
[1763515228496,0.05008547,140.79,140.76,0.05291553]
[1763515228805,6.44668547,140.79,140.76,0.05291553]
[1763515230302,6.44668547,140.79,140.76,3.10291553]
[1763515230806,0.05008547,140.79,140.76,3.10291553]
[1763515231399,37.38,140.82,140.78,3.05]
[1763515231801,43.98194432,140.86,140.78,3.05]
[1763515232009,5.33081912,140.85,140.78,3.05]
[1763515232205,6.3947,140.83,140.79,3.05]
[1763515232395,0.04673666,140.82,140.8,3.09612195]
[1763515235110,0.04673666,140.82,140.8,0.04612195]
[1763515235605,6.44193666,140.82,140.8,0.04612195]
[1763515235805,6.60194432,140.89,140.8,3.04612195]
[1763515236005,5.32831846,140.88,140.84,3.0]
[1763515236201,106.00604432,140.93,140.84,3.0]
[1763515236404,5.322519,140.92,140.84,3.0]
[1763515236610,6.3911,140.91,140.84,3.0]
[1763515236804,5.322519,140.92,140.84,3.0]
[1763515237012,0.04852568,140.89,140.86,3.05209095]
[1763515239807,0.04852568,140.89,140.87,6.3927]
[1763515240112,0.04852568,140.89,140.88,3.0]
[1763515245319,99.3612,140.99,140.91,3.0]
[1763515245519,6.3891,140.96,140.91,3.0]
[1763515245724,37.36,140.97,140.91,3.0]
[1763515246227,37.36,140.97,140.91,9.3909]
[1763515246526,0.04858925,140.95,140.93,3.04486133]
[1763515248126,0.04858925,140.95,140.93,9.43486133]
[1763515248329,0.04858925,140.95,140.94,3.0]
[1763515249322,6.3879,140.98,140.94,3.0]
[1763515250322,0.04537418,140.97,140.94,3.0]
[1763515252530,4.93871636,141.05,140.94,3.0]
[1763515252829,6.387,141.0,140.96,3.0]
[1763515253422,0.05439431,140.99,140.96,3.0]
[1763515253622,6.44199431,140.99,140.97,0.05042717]
[1763515254422,0.05439431,140.99,140.97,3.05042717]
[1763515256335,6.44189431,140.99,140.97,0.05042717]
[1763515257942,6.44189431,140.99,140.97,3.05042717]
[1763515258833,0.05439431,140.99,140.97,3.05042717]
[1763515260434,0.05439431,140.99,140.98,3.0]
[1763515260633,37.32,141.05,140.98,3.0]
[1763515260634,6.3854,141.04,140.98,3.0]
[1763515260832,37.32,141.05,141.01,3.0]
[1763515261140,6.54552114,141.11,141.01,3.0]
[1763515261444,6.54552114,141.11,141.04,3.0]
[1763515261445,37.32,141.11,141.04,3.0]
[1763515261644,0.04544562,141.09,141.06,0.04887919]
[1763515263344,0.04544562,141.09,141.06,3.04887919]
[1763515263727,0.04544562,141.09,141.07,3.15]
[1763515263945,37.32,141.15,141.07,3.15]
[1763515264441,37.32,141.15,141.08,3.15]
[1763515264947,136.5707,141.15,141.1,0.04755304]
[1763515265131,37.32,141.15,141.1,0.04755304]
[1763515265333,6.3791,141.18,141.12,3.15]
[1763515265637,37.32,141.2,141.14,3.20113788]
[1763515265837,105.73672114,141.24,141.14,3.20113788]
[1763515266043,5.23914379,141.23,141.19,3.15]
[1763515266241,99.1668,141.27,141.2,0.04557104]
[1763515266445,5.23027062,141.26,141.2,0.04557104]
[1763515266747,99.1852,141.24,141.2,0.04557104]
[1763515267046,99.1985,141.22,141.2,0.04557104]
[1763515267242,6.3773,141.22,141.2,0.04557104]
[1763515268236,43.6763,141.24,141.2,0.04557104]
[1763515268640,37.3,141.24,141.2,3.19557104]
[1763515269550,99.1787,141.25,141.2,0.04557104]
[1763515269740,99.1787,141.25,141.2,3.19557104]
[1763515270045,99.1787,141.25,141.2,0.04557104]
[1763515270844,136.4734,141.26,141.2,3.19557104]
[1763515271046,37.3,141.26,141.2,3.19557104]
[1763515271834,43.6755,141.26,141.2,3.19557104]
[1763515272139,37.3,141.26,141.2,3.19557104]
[1763515272352,37.28,141.31,141.22,3.15]
[1763515272643,37.28,141.31,141.25,3.20380762]
[1763515272949,37.28,141.35,141.26,3.15]
[1763515273144,37.28,141.35,141.29,0.04501629]
[1763515273540,6.3718,141.34,141.29,0.04501629]
[1763515273734,99.1145,141.34,141.29,0.04501629]
[1763515274239,6.3725,141.32,141.29,0.04501629]
[1763515274545,99.1144,141.34,141.29,0.04501629]
[1763515274733,6.3723,141.33,141.29,0.04501629]
[1763515275135,37.28,141.35,141.29,3.19501629]
[1763515275847,99.1227,141.33,141.29,0.04501629]
[1763515276944,99.115,141.34,141.29,0.04501629]
[1763515277354,6.3732,141.31,141.29,0.04501629]
[1763515277650,43.6532,141.31,141.29,0.04501629]
[1763515278745,37.28,141.31,141.29,0.04501629]
[1763515279136,99.0963,141.37,141.29,3.19501629]
[1763515279340,37.28,141.36,141.29,3.15]
[1763515279642,6.3719,141.34,141.32,0.05249853]
[1763515280040,43.6509,141.36,141.32,0.05249853]
[1763515280549,37.28,141.36,141.32,0.05249853]
[1763515280948,37.28,141.36,141.32,3.20249853]
[1763515281146,8.22642822,141.42,141.32,3.20249853]
[1763515281340,37.28,141.41,141.32,3.15]
[1763515281546,6.3691,141.4,141.36,3.07221967]
[1763515281751,107.25972822,141.46,141.36,3.07221967]
[1763515281946,37.28,141.45,141.4,0.05198229]
[1763515282447,6.3668,141.45,141.4,3.07198229]
[1763515282649,37.28,141.47,141.4,3.07198229]
[1763515282846,37.28,141.47,141.42,0.05422139]
[1763515283147,37.28,141.47,141.42,3.07422139]
[1763515283745,6.3663,141.46,141.42,3.07422139]
[1763515284246,6.3646,141.5,141.42,3.07422139]
[1763515284545,98.9926,141.52,141.43,3.02]
[1763515284546,37.28,141.52,141.43,3.02]
[1763515284744,37.28,141.52,141.46,0.05209832]
[1763515285049,136.2718,141.52,141.46,0.05209832]
[1763515285252,98.9958,141.51,141.46,0.05209832]
[1763515285852,6.3655,141.48,141.46,0.05209832]
[1763515286050,43.6455,141.48,141.46,0.05209832]
[1763515286246,43.6455,141.48,141.4,3.02]
[1763515286247,37.28,141.48,141.4,3.02]
[1763515286445,37.33355923,141.48,141.36,3.02]
[1763515286641,37.28,141.48,141.36,3.02]
[1763515287042,6.3664,141.46,141.37,3.02]
[1763515287551,0.05194351,141.43,141.41,3.02]
[1763515289152,0.05194351,141.43,141.4,0.04659858]
[1763515290263,6.3682,141.42,141.4,0.04659858]
[1763515290751,0.05194351,141.43,141.4,0.04659858]
[1763515291456,0.05194351,141.43,141.4,3.06659858]
[1763515291754,37.28,141.51,141.41,3.02]
[1763515291952,37.28,141.51,141.43,3.02]
[1763515292350,43.6441,141.51,141.44,9.3869]
[1763515292550,43.6441,141.51,141.46,0.04688974]
[1763515292751,6.3641,141.51,141.46,0.04688974]
[1763515293147,6.3652,141.49,141.46,0.04688974]
[1763515293649,6.3655,141.48,141.46,0.04688974]
[1763515293849,136.2811,141.51,141.46,0.04688974]
[1763515294051,37.28,141.51,141.46,0.04688974]
[1763515294247,136.279,141.51,141.46,0.04688974]
[1763515294753,99.0025,141.5,141.46,0.04688974]
[1763515294958,6.3655,141.48,141.46,0.04688974]
[1763515295952,37.28,141.47,141.46,0.04688974]
[1763515296757,99.0355,141.46,141.36,3.22]
[1763515296956,6.54552114,141.58,141.38,8.22642822]
[1763515297164,6.54552114,141.58,141.36,3.22]
[1763515297165,1.01,141.65,141.51,3.22]
[1763515297359,1.01,141.65,141.55,3.22]
[1763515297558,1.01,141.65,141.56,3.22]
[1763515297759,1.01,141.65,141.57,3.22]
[1763515297952,1.01,141.6,141.58,0.05265739]
[1763515298354,1.01,141.63,141.53,3.22]
[1763515298552,0.04837878,141.6,141.58,0.04716789]
[1763515298749,0.04837878,141.6,141.53,3.22]
[1763515299255,0.04837878,141.6,141.53,108.5634]
[1763515299556,0.04837878,141.6,141.54,3.22]
[1763515299751,0.04837878,141.6,141.56,3.26639228]
[1763515299961,0.04837878,141.6,141.57,3.22]
[1763515300155,0.04837878,141.6,141.59,3.22]
[1763515300354,98.845,141.73,141.58,197.8912]
[1763515300355,1.01,141.71,141.63,3.22]
[1763515300551,98.8325,141.75,141.63,102.1282]
[1763515300552,1.06,141.75,141.63,102.1282]
[1763515300751,1.06,141.75,141.64,3.22]
[1763515300963,1.06,141.75,141.66,3.22]
[1763515301258,1.10729457,141.72,141.69,0.05391855]
[1763515301759,0.04729457,141.72,141.69,0.05391855]
[1763515301954,1.10729457,141.72,141.69,0.05391855]
[1763515302156,0.04729457,141.72,141.69,0.05391855]
[1763515302359,0.04729457,141.72,141.69,3.27391855]
[1763515303460,136.2222,141.82,141.7,3.22]
[1763515303666,1.06,141.83,141.73,3.22]
[1763515303865,98.7788,141.82,141.73,3.22]
[1763515304065,6.3509,141.8,141.73,3.22]
[1763515304362,1.06,141.79,141.75,0.05148648]
[1763515304554,1.06,141.77,141.76,0.04638421]
[1763515304758,98.8277,141.75,141.64,3.22]
[1763515304963,99.8863,141.76,141.65,3.22]
[1763515305268,144.47342822,141.81,141.65,3.22]
[1763515305269,1.06,141.8,141.69,3.22]
[1763515305462,136.2404,141.82,141.71,3.22]
[1763515305463,37.46,141.82,141.71,3.22]
[1763515305668,0.0462917,141.78,141.75,3.27269418]
[1763515307076,0.0462917,141.78,141.75,0.05269418]
[1763515307563,98.8156,141.77,141.71,3.22]
[1763515308164,105.1683,141.77,141.71,3.22]
[1763515308359,98.8156,141.77,141.71,3.22]
[1763515308570,105.1976,141.73,141.64,3.22]
[1763515308760,0.05385845,141.7,141.67,0.04990012]
[1763515308966,99.97795845,141.7,141.67,0.04990012]
[1763515309172,1.06,141.69,141.67,0.04990012]
[1763515310369,0.05385845,141.7,141.67,3.26990012]
[1763515310871,1.06,141.77,141.67,4.68990012]
[1763515311064,37.46,141.76,141.68,3.22]
[1763515311267,38.52,141.77,141.68,3.22]
[1763515311574,105.1615,141.78,141.68,3.22]
[1763515311575,142.6197,141.78,141.68,3.22]
[1763515311768,43.8119,141.78,141.68,3.22]
[1763515312070,98.799,141.8,141.72,3.27372976]
[1763515312071,0.04521994,141.74,141.72,3.27372976]
[1763515313575,37.48,141.81,141.72,3.27372976]
[1763515313873,1.1,141.85,141.73,3.22]
[1763515313874,38.56,141.85,141.73,3.22]
[1763515314273,6.3499,141.83,141.74,3.22]
[1763515314472,104.74140721,141.83,141.74,3.22]
[1763515314774,104.74140721,141.83,141.77,0.04676863]
[1763515314775,1.1,141.8,141.77,0.04676863]
[1763515314967,1.1,141.79,141.77,0.04676863]
[1763515315568,1.1,141.76,141.66,9.5768]
[1763515315772,1.1,141.73,141.66,3.22]
[1763515315985,98.8492,141.72,141.66,3.22]
[1763515316275,6.3558,141.7,141.61,3.22]
[1763515316471,98.8705,141.69,141.61,3.22]
[1763515316672,0.04676863,141.66,141.64,0.05002277]
[1763515317068,1.1,141.65,141.5,102.221]
[1763515317267,6.3583,141.64,141.53,3.22]
[1763515317469,1.1,141.65,141.53,3.22]
[1763515317871,1.1,141.65,141.55,3.22]
[1763515318181,0.04941969,141.61,141.59,0.05114002]
[1763515318978,1.14941969,141.61,141.59,0.05114002]
[1763515319177,1.14941969,141.61,141.51,3.22]
[1763515319478,104.87100721,141.65,141.52,3.22]
[1763515319677,38.6,141.64,141.52,3.22]
[1763515320179,0.04587808,141.59,141.57,0.04579711]
[1763515320371,1.1,141.58,141.48,3.22]
[1763515320574,1.1,141.58,141.49,3.22]
[1763515320779,1.1,141.58,141.5,9.5841]
[1763515320977,1.1,141.58,141.5,3.22]
[1763515321190,1.1,141.58,141.46,99.0264]
[1763515321191,6.3624,141.55,141.46,9.5862]
[1763515321392,1.1,141.51,141.49,0.0449252]
[1763515321882,38.6654062,141.52,141.49,0.0449252]
[1763515322085,0.0454062,141.52,141.49,3.2649252]
[1763515322289,1.1454062,141.52,141.49,0.0449252]
[1763515322490,1.1,141.51,141.4,3.22]
[1763515322992,37.54,141.5,141.42,3.22]
[1763515323191,38.64,141.5,141.42,3.22]
[1763515323384,0.04493239,141.47,141.45,0.05039899]
[1763515323692,1.15493239,141.47,141.45,0.05039899]
[1763515324094,0.04493239,141.47,141.45,0.05039899]
[1763515324296,1.15493239,141.47,141.39,37.5]
[1763515324594,1.15493239,141.47,141.37,0.42]
[1763515324595,1.11,141.45,141.37,0.42]
[1763515325090,38.65,141.44,141.37,0.42]
[1763515325298,1.15561911,141.42,141.39,0.05260466]
[1763515325694,0.04561911,141.42,141.39,3.21260466]
[1763515325986,37.54,141.48,141.4,102.2305]
[1763515326182,1.11,141.47,141.37,99.5082]
[1763515326388,1.11,141.47,141.37,102.6682]
[1763515326588,5.97950721,141.51,141.4,102.2306]
[1763515326794,37.56,141.47,141.4,102.2306]
[1763515326996,1.16409444,141.45,141.42,0.05386875]
[1763515328082,37.63409444,141.45,141.42,0.05386875]
[1763515328295,1.11,141.44,141.42,0.05386875]
[1763515328589,1.11,141.44,141.37,0.42]
[1763515329494,0.04458905,141.42,141.39,3.2119604]
[1763515329795,0.04458905,141.42,141.39,102.2894604]
[1763515330091,0.04458905,141.42,141.39,0.0519604]
[1763515330285,1.15458905,141.42,141.39,0.0519604]
[1763515330994,1.11,141.4,141.37,0.42]
[1763515331494,1.11,141.4,141.33,105.4932]
[1763515331697,37.6,141.42,141.34,99.1134]
[1763515332000,0.05160725,141.39,141.37,0.04550518]
[1763515333800,0.05160725,141.39,141.33,3.16]
[1763515333801,1.16160725,141.39,141.29,102.309]
[1763515333993,1.11,141.39,141.3,102.3016]
[1763515334391,1.11,141.39,141.3,3.16]
[1763515334896,1.11,141.39,141.3,9.5331]
[1763515335100,0.05198162,141.36,141.33,0.04588802]
[1763515335904,1.16198162,141.36,141.33,0.04588802]
[1763515336399,0.05198162,141.36,141.33,0.04588802]
[1763515336992,1.16198162,141.36,141.33,0.04588802]
[1763515337299,0.05198162,141.36,141.33,0.04588802]
[1763515338298,1.16198162,141.36,141.33,0.04588802]
[1763515338597,7.4814,141.35,141.29,0.42]
[1763515338900,1.11,141.34,141.29,0.42]
[1763515339200,38.71,141.33,141.29,0.42]
[1763515339497,0.04996161,141.32,141.3,3.20947336]
[1763515339697,37.6,141.39,141.32,3.16]
[1763515339898,38.71,141.39,141.32,3.16]
[1763515340803,0.04575524,141.37,141.34,0.0502962]
[1763515341402,0.04575524,141.37,141.34,9.5815962]
[1763515341597,0.04575524,141.37,141.34,0.0502962]
[1763515341800,1.15575524,141.37,141.34,0.0502962]
[1763515342000,1.15575524,141.37,141.29,0.42]
[1763515342209,6.3709,141.36,141.29,6.7936]
[1763515342498,1.11,141.36,141.29,0.42]
[1763515343204,0.05154164,141.34,141.31,0.04653803]
[1763515343503,1.16154164,141.34,141.31,0.04653803]
[1763515343904,0.05154164,141.34,141.31,3.13653803]
[1763515344497,0.05154164,141.34,141.33,9.462]
[1763515344797,0.05154164,141.34,141.33,3.09]
[1763515345004,0.05154164,141.34,141.31,0.04653803]
[1763515345592,0.05154164,141.34,141.31,6.41933803]
[1763515345994,1.16154164,141.34,141.31,0.04653803]
[1763515346407,0.05154164,141.34,141.31,0.04653803]
[1763515346808,0.05154164,141.34,141.31,3.13653803]
[1763515347013,0.05154164,141.34,141.32,3.09]
[1763515348006,0.05154164,141.34,141.32,9.4623]
[1763515349902,0.05154164,141.34,141.31,0.04653803]
[1763515350908,1.16154164,141.34,141.31,0.04653803]
[1763515351108,1.11,141.32,141.2,4.86950721]
[1763515351297,1.11,141.29,141.2,3.09]
[1763515351606,1.11,141.29,141.2,102.2995]
[1763515351807,1.11,141.29,141.21,3.09]
[1763515352304,0.04718114,141.26,141.24,0.04588221]
[1763515352693,0.04718114,141.26,141.24,3.13588221]
[1763515353293,0.04718114,141.26,141.25,3.17]
[1763515353500,1.11,141.33,141.25,102.3472]
[1763515353701,1.11,141.33,141.22,102.3652]
[1763515354009,1.11,141.33,141.23,102.361]
[1763515354201,1.11,141.33,141.24,99.1834]
[1763515354601,1.15563496,141.3,141.27,0.04482784]
[1763515355202,1.11,141.29,141.27,0.04482784]
[1763515357706,7.4841,141.29,141.27,0.04482784]
[1763515358013,1.11,141.29,141.27,0.04482784]
[1763515359509,7.4839,141.29,141.27,0.04482784]
[1763515359711,1.11,141.28,141.27,0.04482784]
[1763515360106,43.9739,141.29,141.2,139.9772]
[1763515360107,7.4848,141.27,141.2,3.17]
[1763515360914,7.4848,141.27,141.21,6.3773]
[1763515361102,0.04904845,141.25,141.23,0.04788414]
[1763515361702,1.15904845,141.25,141.23,0.04788414]
[1763515362014,7.53484845,141.25,141.23,0.04788414]
[1763515362208,38.69,141.24,141.17,6.379]
[1763515362408,38.69,141.24,141.16,40.75]
[1763515362722,37.58,141.25,141.18,3.17]
[1763515362908,37.58,141.25,141.18,9.5485]
[1763515363109,0.04678046,141.23,141.2,0.04486535]
[1763515363508,0.04678046,141.23,141.2,9.59256535]
[1763515363712,0.04678046,141.23,141.2,3.21486535]
[1763515364415,1.15678046,141.23,141.2,0.04486535]
[1763515364915,6.42338046,141.23,141.2,0.04486535]
[1763515365122,1.11,141.22,141.2,0.04486535]
[1763515367317,0.04678046,141.23,141.2,3.21486535]
[1763515368523,0.04678046,141.23,141.21,9.5472]
[1763515369019,0.04678046,141.23,141.21,3.17]
[1763515369223,0.04678046,141.23,141.2,0.04486535]
[1763515369615,0.04678046,141.23,141.2,3.21486535]
[1763515370817,0.04678046,141.23,141.21,9.5472]
[1763515372720,0.04678046,141.23,141.22,3.17]
[1763515375120,1.15678046,141.23,141.2,0.04486535]
[1763515375927,6.22415406,141.23,141.2,0.04486535]
[1763515376126,6.22415406,141.23,141.14,3.17]
[1763515376127,1.15678046,141.23,141.14,3.17]
[1763515376336,1.11,141.18,141.11,40.71]
[1763515377326,0.05293469,141.16,141.13,3.21788206]
[1763515378819,0.05293469,141.16,141.13,9.59888206]
[1763515379523,0.05293469,141.16,141.15,3.17]
[1763515380129,38.69,141.22,141.17,6.3792]
[1763515380324,1.11,141.21,141.17,6.3792]
[1763515380918,38.69,141.23,141.18,6.3786]
[1763515381120,1.16387402,141.22,141.19,0.05169648]
[1763515382029,7.4876,141.21,141.19,0.05169648]
[1763515382215,1.11,141.2,141.19,0.05169648]
[1763515382418,1.11,141.2,141.14,6.3803]
[1763515382620,5.12878348,141.22,141.12,3.17]
[1763515382621,1.11,141.19,141.12,3.17]
[1763515383125,38.67,141.23,141.14,3.17]
[1763515383330,1.11,141.22,141.14,9.5505]
[1763515383525,1.11,141.22,141.1,99.2789]
[1763515383526,1.11,141.21,141.1,3.05]
[1763515383725,0.05303167,141.17,141.15,3.05]
[1763515385132,0.05303167,141.17,141.15,9.43]
[1763515386532,0.05303167,141.17,141.14,0.05056417]
[1763515386921,0.05303167,141.17,141.14,3.10056417]
[1763515388630,0.05303167,141.17,141.15,3.05]
[1763515389231,0.05303167,141.17,141.16,3.05]
[1763515391524,1.11,141.23,141.18,9.4288]
[1763515392234,7.65552114,141.27,141.19,3.05]
[1763515392528,1.15524619,141.24,141.22,0.05169522]
[1763515393431,0.04524619,141.24,141.22,0.05169522]
[1763515394921,1.15524619,141.24,141.22,0.05169522]
[1763515395121,1.15524619,141.24,141.15,3.05]
[1763515395326,7.4871,141.22,141.17,6.3792]
[1763515395537,12.65944606,141.22,141.15,3.05]
[1763515395728,1.11,141.22,141.15,3.05]
[1763515395927,1.11,141.22,141.17,9.4291]
[1763515396133,0.0453835,141.21,141.18,0.0524974]
[1763515396328,1.1553835,141.21,141.18,0.0524974]
[1763515396525,0.0453835,141.21,141.18,0.0524974]
[1763515397225,1.1553835,141.21,141.18,0.0524974]
[1763515397833,0.0453835,141.21,141.18,0.0524974]
[1763515398033,0.0453835,141.21,141.18,3.1024974]
[1763515398542,0.0453835,141.21,141.2,3.05]
[1763515399734,0.0453835,141.21,141.18,0.0524974]
[1763515399938,1.1553835,141.21,141.18,0.0524974]
[1763515400636,12.72427435,141.21,141.18,0.0524974]
[1763515400837,6.30129085,141.2,141.18,0.0524974]
[1763515401829,1.11,141.19,141.18,0.0524974]
[1763515402426,12.6874043,141.2,141.18,0.0524974]
[1763515402629,6.3094043,141.2,141.18,0.0524974]
[1763515402834,1.11,141.2,141.18,0.0524974]
[1763515403140,6.3094043,141.2,141.18,0.0524974]
[1763515403641,5.1994043,141.2,141.18,0.0524974]
[1763515403842,1.1553835,141.21,141.18,0.0524974]
[1763515404240,6.31258556,141.2,141.18,0.0524974]
[1763515405536,1.11,141.19,141.14,3.05]
[1763515405739,6.31371934,141.18,141.14,9.4306]
[1763515406245,5.20371934,141.18,141.16,3.27]
[1763515406446,6.54552114,141.22,141.16,3.27]
[1763515406447,5.20371934,141.2,141.16,3.27]
[1763515406745,0.04994464,141.19,141.18,9.6487]
[1763515407540,0.04994464,141.19,141.17,3.32306085]
[1763515408247,0.04994464,141.19,141.17,9.70226085]
[1763515409045,0.04994464,141.19,141.17,3.32306085]
[1763515409444,0.04994464,141.19,141.17,0.05306085]
[1763515409648,1.15994464,141.19,141.17,0.05306085]
[1763515410049,7.53834464,141.19,141.17,0.05306085]
[1763515410448,1.15994464,141.19,141.17,0.05306085]
[1763515410646,1.11,141.18,141.17,0.05306085]
[1763515411846,0.04994464,141.19,141.17,0.05306085]
[1763515412045,0.04994464,141.19,141.18,3.27]
[1763515413655,0.04994464,141.19,141.17,6.43206085]
[1763515413845,0.04994464,141.19,141.17,9.59206085]
[1763515414445,0.04994464,141.19,141.17,3.21306085]
[1763515414856,1.15994464,141.19,141.17,0.05306085]
[1763515415050,6.3627821,141.19,141.17,0.05306085]
[1763515415246,7.53844464,141.19,141.17,0.05306085]
[1763515415445,0.04994464,141.19,141.17,0.05306085]
[1763515415650,0.04994464,141.19,141.17,3.21306085]
[1763515416859,0.04994464,141.19,141.17,9.59226085]
[1763515418059,0.04994464,141.19,141.17,3.21306085]
[1763515418761,0.04994464,141.19,141.18,9.5388]
[1763515419858,6.54552114,141.25,141.19,3.16]